bitfinex-derivatives/quotes_ETHF0:USTF0_20251229
["timestamp","ask_amount","ask_price","bid_price","bid_amount"]
[1767002904483,0.00790335,2974.6,2973.5,0.0050483]
[1767002905581,0.16833,2974.1,2972.9,4.94e-06]
[1767002906283,0.00790335,2974.6,2972.9,4.94e-06]
[1767002906579,0.00790335,2974.6,2973.5,0.0050483]
[1767002906779,0.17619335,2974.6,2973.5,0.0050483]
[1767002907172,0.17619335,2974.6,2973.5,0.7180483]
[1767002907575,0.16825,2975.2,2973.6,4.37099659]
[1767002907776,2.33783276,2976.7,2973.7,0.16833]
[1767002907777,0.16821,2976.0,2973.7,0.16833]
[1767002907979,0.16821,2975.9,2974.3,1.71385982]
[1767002908187,0.26335551,2976.7,2973.8,4.37099659]
[1767002908382,0.05850377,2977.2,2973.9,4.21]
[1767002908383,0.16822,2975.7,2973.9,4.21]
[1767002908577,0.16822,2975.7,2974.0,4.088]
[1767002908776,0.16822,2975.7,2974.5,0.0050483]
[1767002908777,0.16947665,2975.7,2974.5,0.0050483]
[1767002910382,0.16823,2975.6,2974.5,0.0050483]
[1767002910582,0.16824,2975.5,2974.5,0.0050483]
[1767002910779,0.00125665,2975.7,2974.5,0.0050483]
[1767002911383,0.16824,2975.4,2974.5,0.0050483]
[1767002912973,0.00125665,2975.7,2974.5,0.0050483]
[1767002913481,0.00125665,2975.7,2974.6,4.978]
[1767002914286,0.004,2975.6,2974.7,4.977]
[1767002914689,0.004,2975.6,2974.6,4.977]
[1767002914888,0.16825,2975.1,2973.0,0.16837]
[1767002915088,0.16825,2975.1,2973.4,4.977]
[1767002915285,0.16825,2975.1,2973.4,9.36082331]
[1767002915783,0.16825,2975.1,2974.0,0.0050483]
[1767002915983,0.0050483,2974.5,2974.0,0.0050483]
[1767002916389,0.0050483,2974.5,2974.0,4.9820483]
[1767002917077,0.004,2975.6,2974.0,4.9820483]
[1767002917681,0.004,2975.6,2974.1,4.39305587]
[1767002918490,0.004,2975.6,2974.0,0.0050483]
[1767002918793,0.16823,2975.5,2974.1,1.699]
[1767002920486,0.16824,2975.4,2974.0,0.0050483]
[1767002920690,0.16824,2975.4,2974.1,4.976]
[1767002921182,0.004,2975.6,2974.0,0.0050483]
[1767002921393,0.86283416,2975.5,2974.0,0.0050483]
[1767002921583,0.004,2975.6,2974.0,0.0050483]
[1767002921584,0.16826,2975.0,2974.0,0.0050483]
[1767002922191,0.004,2975.6,2974.0,0.0050483]
[1767002923493,0.004,2975.6,2974.1,4.95112366]
[1767002924195,0.004,2975.6,2974.2,4.974]
[1767002924584,0.004,2975.6,2974.0,0.0050483]
[1767002924790,0.004,2975.6,2974.1,4.974]
[1767002926589,0.17223,2975.6,2974.2,4.973]
[1767002927795,0.17223,2975.6,2974.0,0.0050483]
[1767002927796,0.16823,2975.5,2974.0,0.0050483]
[1767002930789,0.16823,2975.5,2974.1,4.3079874]
[1767002933502,1.75539329,2976.7,2974.1,4.3079874]
[1767002933503,0.1682,2976.1,2974.1,4.3079874]
[1767002933703,0.1682,2976.1,2974.1,4.4762974]
[1767002934104,0.1682,2976.1,2974.2,0.1683]
[1767002934305,0.16816,2976.8,2974.3,0.1683]
[1767002934503,1.03694188,2976.7,2974.5,0.16829]
[1767002934802,0.16816,2976.7,2975.3,0.0050483]
[1767002935004,0.16816,2976.7,2975.4,4.213]
[1767002936403,40.8,2977.3,2975.3,0.00861429]
[1767002936404,0.16817,2976.6,2975.3,0.00861429]
[1767002936606,0.16817,2976.6,2975.4,4.972]
[1767002937800,0.16813,2977.3,2975.4,4.972]
[1767002938010,0.86894282,2977.2,2975.4,4.972]
[1767002938201,0.16813,2977.3,2975.4,4.972]
[1767002938403,0.16813,2977.3,2975.5,4.33667252]
[1767002938901,0.16814,2977.2,2975.6,4.971]
[1767002939112,0.16814,2977.2,2975.5,4.33667252]
[1767002939113,0.16814,2977.2,2975.7,4.971]
[1767002939302,0.16814,2977.2,2975.7,9.31952502]
[1767002939612,0.16814,2977.2,2975.3,0.00861429]
[1767002939802,0.16814,2977.2,2975.4,1.762]
[1767002939998,0.16815,2976.9,2975.4,4.38311141]
[1767002940198,0.16815,2976.9,2975.5,4.971]
[1767002940404,0.16815,2976.9,2975.6,4.971]
[1767002940900,0.16816,2976.8,2975.3,0.00861429]
[1767002941096,0.05848292,2977.9,2975.3,0.00861429]
[1767002941097,1.17935092,2977.8,2975.3,0.00861429]
[1767002941302,1.17935092,2977.6,2975.3,0.00861429]
[1767002941502,1.75539329,2977.8,2975.3,0.00861429]
[1767002941503,0.16817,2976.7,2975.3,0.00861429]
[1767002942002,0.16817,2976.6,2975.3,0.00861429]
[1767002944714,40.8,2977.5,2975.3,0.00861429]
[1767002944913,0.16817,2976.6,2975.3,0.00861429]
[1767002945307,0.16818,2976.5,2975.3,0.00861429]
[1767002948216,0.16818,2976.5,2975.4,4.968]
[1767002948419,0.16818,2976.5,2975.3,0.00861429]
[1767002949112,51.175,2977.5,2975.3,0.00861429]
[1767002949414,0.16818,2976.5,2975.3,0.00861429]
[1767002949614,0.16818,2976.4,2975.3,0.00861429]
[1767002950418,40.8,2977.5,2975.3,0.00861429]
[1767002950621,0.1682,2976.1,2974.6,2.389]
[1767002950910,0.16821,2976.0,2974.6,2.389]
[1767002951104,0.16817,2976.6,2974.7,4.40626062]
[1767002951510,0.16817,2976.6,2974.7,4.57454062]
[1767002951712,0.003566,2976.6,2975.4,0.00503931]
[1767002951912,0.3359,2976.5,2975.4,0.00503931]
[1767002952416,0.003566,2976.6,2975.4,0.00503931]
[1767002954303,0.003566,2976.6,2975.5,4.966]
[1767002955104,0.171736,2976.6,2975.4,0.00503931]
[1767002955308,3.375,2978.3,2975.4,0.00503931]
[1767002955309,1.17935092,2979.5,2975.8,0.16821]
[1767002955514,0.86827386,2979.4,2975.8,0.16821]
[1767002955816,0.16808,2978.2,2975.9,9.27579912]
[1767002956016,0.16808,2978.2,2976.0,4.965]
[1767002956216,0.05845728,2979.1,2975.9,4.31079912]
[1767002956404,0.00502733,2977.8,2976.1,4.31079912]
[1767002956607,0.00502733,2977.8,2976.0,4.966]
[1767002956809,0.00502733,2977.8,2976.1,4.965]
[1767002957010,0.00502733,2977.8,2976.1,9.40177519]
[1767002957207,0.00502733,2977.8,2976.2,4.965]
[1767002957412,0.00502733,2977.8,2976.7,0.00503931]
[1767002958418,0.17312733,2977.8,2976.7,0.00503931]
[1767002960321,0.17312733,2977.8,2976.7,4.97003931]
[1767002961418,0.16811,2977.7,2976.7,0.00503931]
[1767002964417,0.00502733,2977.8,2976.7,0.00503931]
[1767002965215,0.00502733,2977.8,2976.2,1.336]
[1767002966115,0.16813,2977.3,2975.8,4.962]
[1767002966328,0.16814,2977.2,2976.3,0.00503931]
[1767002966621,0.16814,2977.1,2976.3,0.00503931]
[1767002972121,10.375,2978.7,2976.4,4.27128483]
[1767002972429,0.16808,2978.3,2976.5,4.96]
[1767002973017,0.00503931,2977.7,2977.1,0.00503931]
[1767002973221,0.00503931,2977.7,2977.1,0.00819739]
[1767002973623,0.16808,2978.3,2977.1,0.00819739]
[1767002973817,0.00501769,2978.2,2977.1,0.00819739]
[1767002974227,1.17935092,2980.5,2977.2,4.37591909]
[1767002974429,3.375,2980.7,2977.2,4.37591909]
[1767002974430,1.70372241,2980.3,2977.2,4.37591909]
[1767002974633,41.66598618,2980.2,2977.2,4.37591909]
[1767002974931,0.16797,2980.2,2978.1,1.70372241]
[1767002975223,0.16797,2980.2,2978.2,4.2894516]
[1767002975431,0.16797,2980.2,2978.3,4.959]
[1767002975631,0.16797,2980.2,2978.2,4.2894516]
[1767002975632,0.00503931,2979.5,2979.0,0.00503931]
[1767002976227,0.00503931,2979.5,2977.2,1.87185241]
[1767002976429,0.00503931,2979.5,2977.3,2.22]
[1767002976633,0.00503931,2979.5,2977.8,4.32014428]
[1767002976828,0.00503931,2979.5,2977.4,4.32014428]
[1767002977131,0.00503931,2979.5,2978.2,0.00503931]
[1767002977325,0.00503931,2979.5,2978.3,4.958]
[1767002977727,0.00503931,2979.5,2978.2,0.00503931]
[1767002977929,0.00503931,2979.5,2978.3,4.957]
[1767002978427,40.8,2981.0,2978.3,4.957]
[1767002978725,40.8,2981.0,2978.2,0.00503931]
[1767002978726,0.16797,2980.2,2978.2,0.00503931]
[1767002978931,0.16797,2980.1,2978.4,4.155]
[1767002979125,0.16797,2980.1,2978.2,0.00503931]
[1767002979326,0.16797,2980.1,2978.3,4.957]
[1767002979528,0.00503931,2979.5,2978.3,4.957]
[1767002979826,0.16797,2980.1,2978.4,4.956]
[1767002980035,0.16797,2980.1,2978.2,0.00503931]
[1767002980330,40.8,2981.0,2978.3,4.956]
[1767002980530,0.16799,2979.9,2978.3,4.956]
[1767002980932,0.16799,2979.9,2978.4,4.956]
[1767002981132,0.16799,2979.9,2978.2,0.00503931]
[1767002981334,0.16799,2979.8,2978.3,0.734]
[1767002981626,0.16799,2979.8,2978.4,4.955]
[1767002982431,1.70372241,2980.6,2978.2,0.00503931]
[1767002982737,1.70372241,2980.6,2978.2,0.48603931]
[1767002983033,0.16802,2979.3,2978.2,0.00503931]
[1767002983637,7.71572241,2980.6,2978.2,0.00503931]
[1767002983825,0.16801,2979.5,2978.2,0.00503931]
[1767002984024,0.16801,2979.4,2978.2,0.00503931]
[1767002984226,0.16802,2979.3,2978.2,0.00503931]
[1767002984540,0.16803,2979.2,2978.2,0.00503931]
[1767002988230,10.375,2980.4,2978.2,0.00503931]
[1767002988538,0.16801,2979.5,2978.2,0.00503931]
[1767002988936,0.16801,2979.4,2978.2,0.00503931]
[1767002989137,10.375,2980.4,2978.2,0.00503931]
[1767002989342,42.50372241,2980.5,2978.2,0.00503931]
[1767002989836,0.86056633,2980.4,2978.2,0.00503931]
[1767002990043,0.16802,2979.3,2978.2,0.00503931]
[1767002990427,0.16803,2979.2,2978.2,0.00503931]
[1767002990625,0.16803,2979.1,2978.2,0.00503931]
[1767002993731,0.16805,2978.8,2978.2,0.00503931]
[1767002993933,0.16805,2978.8,2978.2,4e-08]
[1767002994833,0.17308931,2978.8,2978.2,4e-08]
[1767002996235,0.17308931,2978.8,2977.1,0.00315808]
[1767002996236,0.16807,2978.5,2977.1,0.00315808]
[1767002997341,0.16807,2978.5,2977.5,0.00503931]
[1767003002245,0.16807,2978.4,2977.5,0.00503931]
[1767003002445,0.16807,2978.3,2977.5,0.00503931]
[1767003002938,0.00503931,2978.8,2977.1,0.00315808]
[1767003003136,0.16809,2978.1,2977.1,0.00315808]
[1767003003341,0.00503931,2978.8,2977.1,0.00315808]
[1767003003544,40.8,2978.7,2976.3,1.351]
[1767003003743,0.1681,2978.0,2976.3,1.351]
[1767003003948,0.1681,2978.0,2976.9,0.00503931]
[1767003004139,0.1681,2977.9,2976.9,0.00503931]
[1767003004333,0.16811,2977.8,2976.3,1.351]
[1767003004540,0.16811,2977.8,2976.4,0.97333743]
[1767003005342,0.16811,2977.8,2976.8,0.00503931]
[1767003006349,0.16807,2978.5,2976.8,0.00503931]
[1767003006746,0.00315808,2978.5,2976.8,0.00503931]
[1767003006945,0.16809,2978.1,2976.8,0.00503931]
[1767003009041,0.16809,2978.0,2976.8,0.00503931]
[1767003009250,0.00315808,2978.5,2976.4,2.91153939]
[1767003009251,0.16811,2977.7,2976.4,2.91153939]
[1767003009449,6.00715808,2978.5,2976.4,2.91153939]
[1767003009642,0.00315808,2978.1,2976.4,2.91153939]
[1767003009849,0.00315808,2978.1,2976.4,0.00353939]
[1767003009850,0.16813,2977.4,2976.4,0.00353939]
[1767003010445,0.00503931,2977.2,2976.6,0.00503931]
[1767003010755,0.00503931,2977.2,2976.4,0.00353939]
[1767003010756,0.17317931,2977.2,2976.4,0.00353939]
[1767003011650,0.17317931,2977.2,2976.5,0.00503931]
[1767003012357,0.00315808,2977.1,2976.4,0.00353939]
[1767003012559,0.00669747,2977.1,2975.7,0.98521813]
[1767003012756,0.00353939,2977.1,2975.7,0.98521813]
[1767003013352,0.00353939,2977.1,2976.1,0.00332021]
[1767003013553,0.00353939,2977.1,2976.1,0.00630984]
[1767003015759,0.16816,2976.9,2974.9,0.16826]
[1767003015969,0.00353939,2977.1,2974.9,0.16826]
[1767003016155,0.00353939,2977.1,2975.0,1.70372241]
[1767003016859,0.00353939,2977.1,2975.0,1.70739461]
[1767003017662,0.16816,2976.7,2975.0,1.70739461]
[1767003018071,0.17131808,2976.7,2975.0,0.0036722]
[1767003019659,0.00353939,2977.1,2975.1,5.99581027]
[1767003020060,0.00353939,2977.1,2975.1,6.16406027]
[1767003020463,0.00353939,2977.1,2975.1,4.46033786]
[1767003020766,0.00353939,2977.1,2975.2,9.3812782]
[1767003023563,0.00353939,2977.1,2975.5,1.70372241]
[1767003023972,0.00353939,2977.1,2975.6,4.43175805]
[1767003025170,0.00315808,2977.0,2975.7,4.948]
[1767003025469,0.00353939,2977.1,2975.7,4.948]
[1767003025772,0.00315808,2977.0,2975.7,4.948]
[1767003026173,0.00353939,2977.1,2975.7,4.948]
[1767003026366,0.00669747,2977.1,2975.7,4.948]
[1767003026873,0.00669747,2977.1,2975.8,1.70372241]
[1767003027075,0.00353939,2977.1,2975.8,1.70372241]
[1767003027277,0.00353939,2977.1,2975.8,6.08231604]
[1767003027778,0.00315808,2976.8,2975.9,4.948]
[1767003028271,0.00315808,2976.8,2976.0,4.948]
[1767003030373,0.00353939,2977.1,2976.0,4.948]
[1767003033781,0.1681,2977.8,2976.0,4.948]
[1767003033981,0.16811,2977.7,2976.1,4.947]
[1767003034282,0.16811,2977.7,2975.8,0.16821]
[1767003034474,0.16811,2977.7,2975.9,4.947]
[1767003034670,0.00503931,2977.1,2976.5,0.00503931]
[1767003037690,0.00503931,2977.1,2976.5,4.95103931]
[1767003037877,0.00503931,2977.1,2976.5,0.00503931]
[1767003044989,3.931e-05,2977.1,2976.5,0.00503931]
[1767003049692,0.16812,2977.5,2976.5,0.00503931]
[1767003050895,0.00503931,2977.3,2976.5,0.00503931]
[1767003055791,0.00298963,2977.7,2976.5,0.00503931]
[1767003056797,0.00503931,2977.4,2976.5,0.00503931]
[1767003057599,0.00298963,2977.7,2976.5,0.00503931]
[1767003058799,3.931e-05,2977.4,2976.5,0.00503931]
[1767003060793,0.16808,2978.3,2976.5,0.00503931]
[1767003061089,0.16808,2978.3,2976.6,7.58166088]
[1767003061294,0.16808,2978.3,2976.8,3.0133987]
[1767003061494,0.16808,2978.3,2976.7,3.0133987]
[1767003061701,10.375,2979.8,2977.1,0.16814]
[1767003061901,0.00503931,2978.7,2978.2,0.00503931]
[1767003062201,0.00503931,2978.7,2978.2,4.95203931]
[1767003062403,10.375,2979.6,2978.2,4.95203931]
[1767003062702,0.16803,2979.2,2978.2,4.95203931]
[1767003063402,0.00335952,2979.0,2978.2,4.95203931]
[1767003063799,0.00335952,2979.0,2978.3,3.6313]
[1767003063997,0.00335952,2979.0,2977.3,3.1815187]
[1767003063998,0.00335952,2979.0,2978.2,4.946]
[1767003064697,0.16796,2980.4,2978.2,4.946]
[1767003064896,0.27063984,2980.8,2977.8,3.0133987]
[1767003065197,0.16797,2980.1,2977.9,4.945]
[1767003065601,0.00503931,2979.3,2978.7,0.00503931]
[1767003065800,0.00503931,2979.3,2978.8,4.945]
[1767003066000,0.16797,2980.1,2978.8,4.945]
[1767003067400,0.16794,2980.7,2978.8,4.945]
[1767003067803,0.16794,2980.7,2978.9,4.35824057]
[1767003068007,0.1679,2981.5,2978.9,7.91409513]
[1767003068199,0.1679,2981.5,2979.0,0.16803]
[1767003068399,0.16792,2981.0,2978.9,4.35824057]
[1767003068704,0.16792,2981.0,2979.0,4.944]
[1767003069902,0.16792,2981.0,2979.1,4.37980013]
[1767003070494,0.67412952,2981.7,2979.1,4.37980013]
[1767003070820,0.84200952,2981.7,2979.2,3.53657205]
[1767003070999,0.84200952,2981.7,2979.2,3.54035158]
[1767003071200,0.16791,2981.3,2979.3,4.30769706]
[1767003071496,0.67412952,2981.7,2979.2,0.00377953]
[1767003071497,0.67412952,2981.7,2980.0,0.00503931]
[1767003071896,0.16793,2980.9,2980.0,0.00503931]
[1767003074503,0.67412952,2981.7,2980.0,0.00503931]
[1767003074808,0.67412952,2981.7,2979.2,0.00377953]
[1767003074996,0.16794,2980.7,2979.2,0.00377953]
[1767003075708,0.00503931,2980.2,2979.7,0.00503931]
[1767003076910,0.00503931,2980.2,2979.2,0.00377953]
[1767003077507,0.17300931,2980.2,2979.2,0.00377953]
[1767003077909,0.17300931,2980.2,2979.4,0.00503931]
[1767003079111,0.00503931,2980.2,2979.4,0.00503931]
[1767003080204,0.16798,2979.9,2979.4,9.31e-06]
[1767003080509,0.16798,2979.9,2979.2,0.00377953]
[1767003081414,0.16798,2979.9,2979.3,0.00503931]
[1767003081806,0.16799,2979.8,2979.3,0.00503931]
[1767003082213,0.16799,2979.8,2979.2,0.00377953]
[1767003083324,0.16799,2979.8,2979.2,0.00881884]
[1767003088124,10.375,2981.2,2979.2,0.00881884]
[1767003088424,40.8,2981.4,2979.2,0.00881884]
[1767003088626,40.8,2981.4,2979.2,2.77381884]
[1767003088825,0.16795,2980.5,2979.2,2.77381884]
[1767003089227,0.00503931,2980.1,2979.2,2.77381884]
[1767003089627,0.00503931,2980.1,2979.2,0.00881884]
[1767003089827,0.00503931,2980.1,2979.2,4.94481884]
[1767003091027,0.00503931,2980.1,2979.2,0.00881884]
[1767003092022,0.16793,2980.9,2979.2,0.00881884]
[1767003094034,0.00503931,2980.3,2979.2,0.00881884]
[1767003095635,0.16793,2980.9,2979.2,0.00881884]
[1767003096329,41.47412952,2981.7,2979.2,0.00881884]
[1767003096525,0.86787066,2981.6,2979.3,4.933]
[1767003096726,0.86787066,2981.5,2979.2,0.00881884]
[1767003096926,41.47412952,2981.7,2979.2,0.00881884]
[1767003097232,0.16796,2980.3,2979.2,0.00881884]
[1767003097735,0.16793,2981.0,2979.2,0.00881884]
[1767003098030,41.47412952,2981.7,2979.2,0.00881884]
[1767003098234,41.47412952,2981.7,2979.3,4.932]
[1767003098235,0.16794,2980.7,2979.3,4.932]
[1767003100236,0.16794,2980.7,2979.4,4.4020151]
[1767003101232,0.16794,2980.7,2979.2,0.00881884]
[1767003101434,0.16794,2980.7,2979.5,4.932]
[1767003102235,0.16794,2980.7,2979.2,0.00881884]
[1767003102536,0.16794,2980.7,2979.3,4.932]
[1767003103236,0.16794,2980.7,2979.2,0.00881884]
[1767003103424,0.16794,2980.7,2979.3,4.931]
[1767003103627,0.16794,2980.7,2979.2,0.00881884]
[1767003103824,0.16794,2980.7,2979.4,4.26249664]
[1767003104029,0.16791,2981.3,2979.3,9.19349664]
[1767003104226,0.16791,2981.2,2979.3,4.931]
[1767003104429,0.16791,2981.2,2979.4,4.29887053]
[1767003106840,0.67412952,2981.7,2979.8,1.86808151]
[1767003107130,0.67412952,2981.7,2979.9,9.33472496]
[1767003107731,0.67412952,2981.7,2979.2,0.00881884]
[1767003108030,0.16792,2981.2,2979.3,4.41087198]
[1767003108237,0.16792,2981.2,2979.4,2.423]
[1767003108439,0.67412952,2981.7,2979.8,1.70009151]
[1767003108840,40.83,2982.5,2979.9,8.26262415]
[1767003108841,0.03,2982.5,2979.9,8.26262415]
[1767003109039,0.03,2982.5,2980.9,1.70513082]
[1767003109339,0.03,2982.5,2981.0,4.933]
[1767003109741,0.03,2982.5,2981.0,9.37043664]
[1767003110130,0.0583708,2983.8,2981.0,9.6340655]
[1767003110333,0.26470096,2985.3,2982.5,1.70009151]
[1767003110640,0.16777,2983.7,2982.6,3.88254653]
[1767003110835,0.1678,2983.2,2982.6,1.87869877]
[1767003111028,0.1678,2983.2,2981.1,4.67]
[1767003111429,0.1678,2983.2,2981.1,9.05225697]
[1767003111632,0.00500195,2982.4,2981.9,0.00503069]
[1767003112036,0.00270901,2982.4,2981.9,0.00804249]
[1767003112541,0.1678,2983.2,2981.9,0.00804249]
[1767003113531,0.16921596,2983.2,2981.9,0.00804249]
[1767003118949,0.00141596,2983.2,2981.9,0.00804249]
[1767003119251,0.16781,2983.0,2981.9,0.00804249]
[1767003121049,0.16783,2982.6,2981.9,0.00804249]
[1767003121454,0.16784,2982.5,2981.9,0.00033153]
[1767003121650,0.16784,2982.4,2980.4,0.27141926]
[1767003121859,0.00141596,2983.2,2980.3,1.70009151]
[1767003122058,0.16784,2982.4,2980.5,4.35412168]
[1767003122253,0.16785,2982.3,2980.3,1.70009151]
[1767003122460,0.00503069,2981.6,2981.0,0.00503069]
[1767003122756,0.00503069,2981.6,2981.0,0.00918387]
[1767003128755,0.1679,2981.5,2981.0,3.87e-06]
[1767003128962,0.1679,2981.5,2980.2,1.954]
[1767003129651,0.00503069,2981.6,2979.8,1.70009151]
[1767003129860,0.00503069,2981.6,2980.4,0.00503069]
[1767003130259,0.16791,2981.3,2980.4,0.00503069]
[1767003130456,0.16791,2981.2,2980.4,0.00503069]
[1767003130864,0.16792,2981.1,2980.4,0.00503069]
[1767003131061,0.17145669,2981.1,2980.4,0.00503069]
[1767003131364,0.16793,2980.9,2979.8,0.0025423]
[1767003131660,0.16793,2980.8,2979.8,0.0025423]
[1767003132454,0.16793,2980.8,2980.0,0.00503069]
[1767003137057,0.16794,2980.7,2980.0,0.00503069]
[1767003137660,0.16794,2980.6,2980.0,0.00503069]
[1767003140563,0.16794,2980.6,2979.8,0.0025423]
[1767003140564,0.16795,2980.5,2979.8,0.0025423]
[1767003141267,0.16796,2980.3,2979.8,0.0025423]
[1767003141570,0.16796,2980.3,2978.5,1.70009151]
[1767003141964,0.16796,2980.3,2978.6,4.37665589]
[1767003142472,0.00503069,2979.7,2979.2,0.00503069]
[1767003145172,3.069e-05,2979.7,2979.2,0.00503069]
[1767003145376,0.16797,2980.1,2979.2,0.00503069]
[1767003146371,0.00503069,2979.9,2979.2,0.00503069]
[1767003153382,0.16799,2979.8,2979.2,0.00503069]
[1767003153772,0.168,2979.7,2979.2,0.00503069]
[1767003153972,0.168,2979.7,2979.2,0.00287152]
[1767003155667,0.16801,2979.5,2978.6,0.0031371]
[1767003156780,0.16801,2979.5,2978.8,0.00503069]
[1767003161183,0.00503069,2979.9,2978.8,0.00503069]
[1767003167994,0.16799,2979.8,2978.8,0.00503069]
[1767003168197,0.168,2979.7,2978.8,0.00503069]
[1767003168397,0.168,2979.6,2978.8,0.00503069]
[1767003172697,0.16801,2979.5,2978.8,0.00503069]
[1767003172900,0.16801,2979.5,2978.8,3.069e-05]
[1767003175292,0.00503069,2979.9,2978.8,3.069e-05]
[1767003176397,5.88203069,2979.9,2978.8,3.069e-05]
[1767003177000,0.00503069,2979.9,2978.8,3.069e-05]
[1767003177501,0.16802,2979.2,2978.8,3.069e-05]
[1767003177695,0.00503069,2979.9,2978.8,3.069e-05]
[1767003178599,0.16802,2979.2,2978.8,3.069e-05]
[1767003178900,0.00503069,2979.9,2978.8,3.069e-05]
[1767003179401,0.16802,2979.2,2978.8,3.069e-05]
[1767003180291,0.16799,2979.8,2979.0,1.18174112]
[1767003180596,0.16797,2980.2,2979.4,1.18174112]
[1767003181005,0.16799,2979.9,2979.0,1.18174112]
[1767003181190,0.168,2979.7,2978.8,3.069e-05]
[1767003181395,0.00503069,2979.5,2978.8,3.069e-05]
[1767003182599,0.16802,2979.3,2978.8,3.069e-05]
[1767003191804,0.00503069,2979.5,2978.6,6.779e-05]
[1767003192013,0.00503069,2979.5,2976.7,3.0133987]
[1767003192308,0.16809,2978.1,2976.4,3.0133987]
[1767003192606,0.16812,2977.6,2975.6,3.0133987]
[1767003192804,0.16812,2977.5,2976.3,0.00503931]
[1767003193008,0.00503931,2976.9,2976.3,0.00823418]
[1767003193409,0.17178857,2977.5,2976.3,0.00823418]
[1767003193610,1.17935092,2979.3,2976.3,0.00823418]
[1767003193611,0.16809,2978.1,2976.3,0.00823418]
[1767003193812,0.16809,2978.0,2976.3,0.00823418]
[1767003194107,0.1681,2977.9,2976.3,0.00823418]
[1767003194314,5.871,2978.2,2976.3,0.00823418]
[1767003194515,0.00503931,2977.5,2976.3,0.00823418]
[1767003194714,0.00746521,2977.5,2976.3,0.00823418]
[1767003199314,4.35,2978.6,2976.3,0.00823418]
[1767003199717,40.8,2978.5,2976.3,0.00823418]
[1767003200214,0.00503931,2977.7,2976.3,0.00823418]
[1767003206628,0.17314931,2977.7,2976.3,0.00823418]
[1767003206826,0.16814,2977.1,2976.3,0.00823418]
[1767003209025,5.87103931,2977.7,2976.3,3.418e-05]
[1767003209319,0.16817,2976.6,2976.3,3.418e-05]
[1767003209631,0.16818,2976.5,2976.3,3.418e-05]
[1767003210918,40.8,2977.6,2976.3,3.418e-05]
[1767003211124,0.16814,2977.1,2976.3,3.418e-05]
[1767003211726,0.16815,2977.0,2976.3,3.418e-05]
[1767003211931,40.8,2977.6,2976.3,3.418e-05]
[1767003212234,0.16817,2976.7,2975.0,0.27488917]
[1767003212434,0.16817,2976.7,2974.9,5.07926]
[1767003212941,5.881,2977.5,2974.9,5.07926]
[1767003213132,0.16817,2976.7,2974.9,5.07926]
[1767003213439,0.00503931,2976.1,2975.5,0.00503931]
[1767003213636,0.00746664,2976.1,2975.5,0.00503931]
[1767003217538,0.16817,2976.6,2975.5,0.00503931]
[1767003218341,0.00503931,2976.3,2975.5,0.00503931]
[1767003224939,0.17076025,2976.6,2975.5,1.7099616]
[1767003225136,6.331,2978.0,2975.5,1.7099616]
[1767003225337,6.74608029,2977.9,2975.5,1.7099616]
[1767003225543,5.875,2977.9,2975.5,1.7099616]
[1767003225739,0.16814,2977.3,2975.5,1.7099616]
[1767003225947,0.17320931,2976.7,2975.5,0.00503931]
[1767003226148,0.17751901,2976.7,2975.5,0.00503931]
[1767003227755,0.16817,2976.6,2975.5,0.00503931]
[1767003229753,0.16818,2976.5,2975.5,0.00503931]
[1767003229961,0.16818,2976.4,2975.5,0.00503931]
[1767003233858,0.00934901,2976.7,2975.5,0.00503931]
[1767003238065,0.17751901,2976.7,2975.5,0.00503931]
[1767003238264,0.16817,2976.6,2975.5,0.00503931]
[1767003241577,0.16814,2977.2,2975.5,0.00503931]
[1767003241867,0.16814,2977.1,2975.8,1.70492229]
[1767003242062,40.8,2977.8,2975.5,0.00503931]
[1767003242262,0.16815,2977.0,2975.5,0.00503931]
[1767003242662,0.00503931,2976.5,2975.5,0.00503931]
[1767003245768,0.16816,2976.8,2975.5,0.00503931]
[1767003246771,0.00502495,2976.4,2975.5,0.00503931]
[1767003246965,0.16816,2976.8,2975.5,0.00503931]
[1767003247176,0.16816,2976.8,2975.6,4.34122555]
[1767003247371,0.16816,2976.8,2975.5,0.00503931]
[1767003248370,0.00203346,2977.0,2975.8,1.70492229]
[1767003253368,0.16814,2977.2,2975.8,1.70492229]
[1767003254464,6.331,2978.8,2976.3,1.70492229]
[1767003254776,0.16809,2978.0,2977.3,0.00503931]
[1767003254964,0.16809,2978.0,2977.3,0.00895342]
[1767003255372,40.8,2978.6,2976.4,4.38251479]
[1767003255373,0.1681,2977.9,2976.4,1.70492229]
[1767003256472,0.00503931,2977.4,2976.9,0.00503931]
[1767003256776,0.17194709,2977.9,2976.9,0.00503931]
[1767003262380,0.16811,2977.7,2976.9,3.931e-05]
[1767003263286,0.005,2977.6,2976.9,3.931e-05]
[1767003263486,0.16811,2977.7,2976.9,3.931e-05]
[1767003264386,0.00384709,2977.9,2976.9,3.931e-05]
[1767003264585,0.16813,2977.4,2976.9,3.931e-05]
[1767003275394,1.18340925,2977.8,2976.9,3.931e-05]
[1767003275701,0.16814,2977.1,2976.9,3.931e-05]
[1767003277891,0.16815,2977.0,2976.9,3.931e-05]
[1767003278498,0.00384709,2977.9,2976.4,4.6e-07]
[1767003278795,0.16817,2976.7,2976.4,4.6e-07]
[1767003281098,0.16817,2976.7,2975.1,3.0133987]
[1767003281591,0.16817,2976.7,2975.2,4.40317752]
[1767003281988,0.16817,2976.7,2975.1,4.41477526]
[1767003282199,0.00503931,2976.2,2975.6,0.00503931]
[1767003282400,0.16817,2976.7,2975.6,0.00503931]
[1767003289796,0.16814,2977.3,2975.6,0.00503931]
[1767003290196,40.8,2977.8,2975.6,0.00503931]
[1767003290804,0.16814,2977.2,2975.6,0.00503931]
[1767003293204,0.16814,2977.2,2975.6,3.01843801]
[1767003294199,0.16814,2977.2,2975.7,7.45134581]
[1767003294593,0.16814,2977.2,2975.8,4.89]
[1767003297802,0.16814,2977.1,2975.8,4.89]
[1767003298002,0.00384709,2977.9,2975.6,4.90603931]
[1767003298210,0.8723008,2977.8,2975.6,4.90603931]
[1767003298402,41.6723008,2977.7,2975.6,4.90603931]
[1767003298604,40.8,2977.7,2975.6,4.90603931]
[1767003299298,0.16815,2976.9,2975.6,4.90603931]
[1767003300199,0.16816,2976.8,2975.6,4.90603931]
[1767003300396,5.871,2977.6,2975.6,3.931e-05]
[1767003300603,0.16818,2976.4,2975.6,3.931e-05]